Workbook

Sheet PARAMETRI (hidden)
A1: Decimali Arrotondamento | B1: 2

Sheet NOTE
B12: MODELLO PER OFFERTA ECONOMICA
B14: composto da:
B15: - n° 1 pagina per indicazioni
B16: - n° 22 pagine del Modello Offerta da compilare
B22: INDICAZIONI:
A25: - | B25: La descrizione sintetica è riportata unicamente per facilitare la compilazione dell'offerta da parte dell'offerente.
B26: Per la formulazione dell'offerta l'offerente dovrà fare comunque esclusivo riferimento alla relativa
B27: descrizione riportata nell'elaborato: ELENCO DESCRITTIVO
A30: - | B30: Nei casi in cui sia richiesta la compilazione di più rilevazioni riferentisi ad un'unica voce di ELENCO DESCRITTIVO sarà cura
B31: dell'offerente compilare tutte le rilevazioni afferenti a quella voce con lo stesso importo unitario. In caso di discordanze
B32: sarà ritenuto valido unicamente l'importo unitario inferiore tra quelli indicati.
B33: Gli articoli già presenti nelle righe precedenti sono contrassegnati con (*)
A35: - | B35: In caso di discordanza tra l'importo in cifre ed in lettere si farà riferimento all'importo in lettere.

Sheet OPERE-COMPILAZIONE
A1: Articolo | C1: Categorie di lavoro riferite all'elenco descrittivo delle voci | D1: Unità di Misura | E1: Quantità | F1: Prezzo Unitario | G1: Prezzo unitario | H1: Prodotto
A2: N. | B2: Cod. | F2: (in cifre) | G2: (in lettere) | H2: (Quantità x Prezzo)
C3: MOVIMENTI TERRA, DEMOLIZIONI, OPERE PROVVISIONALI
A4: 1 | B4: =N4&M4 ->  | C4: Scavo di sbancamento con mezzo meccanico con sistemazione entro cantiere | D4: mc | E4: 1344
A5: =+A4+1 -> 2 | B5: =N5&M5 ->  | C5: Scavo in sezione obbligata con mezzo meccanico con sistemazione entro cantiere | D5: mc | E5: 1214.196
A6: =+A5+1 -> 3 | C6: RINTERRI E TRASPORTI Rinterro compreso l'avvicinamento dei materiali, il compattamento a strati dei materiali impiegati fino al raggiungimento delle quote del terreno preesistente ed il costipamento prescritto: con materiale di risulta proveniente da scavo | D6: mc | E6: 400
C7: STRUTTURE DI FONDAZIONE
A8: =+A6+1 -> 4 | C8: CONGLOMERATI CEMENTIZI PRECONFEZIONATI Magrone di sottofondazione eseguito mediante getto di conglomerato cementizio preconfezionato a dosaggio con cemento 42.5 R, per operazioni di media-grande entità, eseguito secondo le prescrizioni tecniche previ 150 kg/mc | D8: mc | E8: 69.697
A9: 5 | C9: CALCESTRUZZO STRUTTURALE DI FONDAZIONE >= C25/30 NORMA UNI EN 206-1 A CONSISTENZA FLUIDA CON SLUMP COME RICHIESTO DAL D.L. | D9: m³ | E9: 591.47
A10: 6 | C10: ACCIAIO TIPO B450C (FEB44K CONTROLLATO IN STABILIMENTO) | D10: kg | E10: 53232.3
A11: 7 | C11: CASSEFORME IN LEGNAME PER OPERE DI FONDAZIONE | D11: m² | E11: 1540.16
C12: STRUTTURE IN ELEVAZIONE E SOLAI
A13: =+A11+1 -> 8 | C13: Formazione di falso gradino in cls | D13: m | E13: 223.2
A14: 9 | C14: CALCESTRUZZO STRUTTURALE IN ELEVAZIONE >= C32/40 NORMA UNI EN 206-1 A CONSISTENZA FLUIDA CON SLUMP COME RICHIESTO DAL D.L. | D14: m³ | E14: 648.26
A15: 10 | C15: ACCIAIO TIPO B450C (FEB44K CONTROLLATO IN STABILIMENTO) | D15: kg | E15: 159842.75
A16: 11 | C16: CASSEFORME IN LEGNAME PER PILASTRI A FACCE PIANE | D16: m² | E16: 1420.99
A17: 12 | C17: CASSEFORME IN LEGNAME PER TRAVI-SOLETTE | D17: m² | E17: 2341.18
A18: 13 | C18: CASSEFORME IN LEGNAME PER RAMPE E PIANEROTTOLI | D18: m² | E18: 148.74
A19: 14 | C19: Solaio a lastra tipo Predalles H=36 cm (6+24+6) | D19: m² | E19: 2760.42
C20: VESPAI, SOTTOFONDI E MASSETTI
A21: =+A19+1 -> 15 | C21: RINTERRI E TRASPORTI Rinterro compreso l'avvicinamento dei materiali, il compattamento a strati dei materiali impiegati fino al raggiungimento delle quote del terreno preesistente ed il costipamento prescritto: con materiale arido tipo A1, A2-4, A2-5, A3 proveniente da cave o da idoneo impianto di recupero rifiuti-inerti | D21: mc | E21: 700
A22: 16 | C22: CONGLOMERATI CEMENTIZI PRECONFEZIONATI Magrone di sottofondazione eseguito mediante getto di conglomerato cementizio preconfezionato a dosaggio con cemento 42.5 R, per operazioni di media-grande entità, eseguito secondo le prescrizioni tecniche previ 150 kg/mc | D22: mc | E22: 123.046
A23: 17 | C23: Vespaio aerato con casseri plastici e soletta in c.a. h=50+5 | D23: m² | E23: 1225.23
A24: 18 | C24: Sottofondo grezzo alleggerito (caldana) sp. 8-9 cm. | D24: m² | E24: 2035
A25: 19 | C25: Formazione di sottofondo per pavimenti con cls tipo 325 cementizio dosatura 250 kg di cemento, spessore fino a 5 cm con realizzazione del piano di posa tirato a frattazzo lungo armato con rete elettrosaldata | D25: m² | E25: 2037
C26: IMPERMEABILIZZAZIONI ED ISOLAMENTI
A27: =+A25+1 -> 20 | C27: Isolamento acustico solai | D27: m² | E27: 800
A28: 21 | C28: Strato termoisolante in polistirene sp. cm 10 a parete | D28: m² | E28: 122.2
A29: 22 | C29: Strato termoisolante in polistirene sp. cm 14 a pavimento | D29: m² | E29: 1220
A30: 23 | C30: Strato termoisolante in polistirene sp. cm 15 a parete | D30: m² | E30: 640
A31: 24 | C31: Impermeabilizzazione copertura piane tipo Derbigum o similare | D31: m² | E31: 1386
A32: 25 | C32: Fondalina in polietilene per strutture interrate | D32: m² | E32: 1324.96
A33: 26 | C33: Strato termoisolante in polistirene sp. medio cm 14 pendenzato pedonabile per copertura | D33: m² | E33: 1239.98
A34: 27 | C34: Rivestimento isolante termico esterno del tipo a cappotto sp. cm. 15 | D34: m² | E34: 671.04
A35: 28 | C35: Rivestimento isolante termico davanzali in poliuretano tipo stiferite GT spessore 8 cm | D35: m | E35: 208.89
A36: 29 | C36: Coprigiunto in lamiera di alluminio mm. 350 | D36: m | E36: 33.7
A37: 30 | C37: Coprigiunto in lamiera di alluminio mm. 450 | D37: m | E37: 21
A38: 31 | C38: Coprigiunto ad angolo in lamiera di alluminio mm. 375 | D38: m | E38: 21
A39: 32 | C39: Giunti di dilatazione per pareti esterne mm.260/390 | D39: m | E39: 27.6
A40: 33 | C40: Giunti di dilatazione in copertura | D40: m | E40: 19.3
A41: 34 | C41: Coprigiunto in alluminio per pavimenti | D41: m | E41: 16.85
C42: MURATURE E PARETI
A43: =+A41+1 -> 35 | C43: MURATURE IN LATERIZIO Muratura in mattoni e malta dello spessore di una testa, retta o curva ed a qualsiasi, altezza compresi oneri e magisteri per l'esecuzione di ammorsature e quanto altro si renda necessario a realizzare l'opera a perfetta regola con mattoni semipieni doppio UNI (12 x 12 x 25 cm) | D43: mq | E43: 18.7
A44: 36 | C44: Muratura in elevazione realizzata con blocchi di laterizio alveolato di cui alla norma UNI EN 771, retta o curva ed a qualsiasi altezza, compresi oneri e magisteri per l'esecuzione di ammorsature e quanto altro si renda necessario a realizzare l'oper spessore 30 cm | D44: mq | E44: 1054.972
A45: 37 | C45: MURATURE IN BLOCCHI FORATI in conglomerato di argilla espansa, 20 x 50 cm, a superficie piana, eseguita con malta bastarda, a qualsiasi altezza spessore 12 cm | D45: mq | E45: 520.702
A46: 38 | C46: PARETI DIVISORIE IN CARTONGESSO Parete divisoria in lastre di cartongesso dello spessore di 12,5 mm fissate mediante viti autoperforanti ad una struttura costituita da profilati in lamiera di acciaio zincato da 0,6 mm con montanti ad interasse di 600 con due lastre di cartongesso su entrambi i lati della parete | D46: mq | E46: 695.079
A47: 39 | C47: PARETI DIVISORIE IN CARTONGESSO Parete divisoria in lastre di cartongesso dello spessore di 12,5 mm fissate mediante viti autoperforanti ad una struttura costituita da profilati in lamiera di acciaio zincato da 0,6 mm con montanti ad interasse di 600 sovrapprezzo inserimento pannello in lana di roccia spessore 100 mm densità 90 kg/mc (parete 57 dB) | D47: mq | E47: 616.679
A48: 40 | C48: Pareti in laterizio forato dello spessore di 8 cm | D48: m² | E48: 91.06
A49: 41 | C49: Pareti in laterizio forato dello spessore di 12 cm con forati di peso >= a kg 4,5 | D49: m² | E49: 338.71
A50: 42 | C50: Tavelle in laterizio spessore 4/6 cm | D50: m² | E50: 4.33
A51: 43 | C51: Parete con doppia lastra per lato in cartongesso rinforzato spessore totale mm. 150 REI 60 divisoria aule | D51: m² | E51: 112.7
A52: 44 | C52: Controparete interna costituita da lastre in cartongesso su orditura metallica con intercapedine e materassino in lana di roccia | D52: m² | E52: 306.96
A53: 45 | C53: Formazione di cassonetti e chiusure impiantistiche sia verticali che orizzontali | D53: m² | E53: 90.13
A54: 46 | C54: Compenso per realizzazione ancoraggi murature laterizie di facciata | D54: m² | E54: 816
C55: INTONACI E TINTEGGIATURE
A56: =+A54+1 -> 47 | C56: Fornitura e posa in opera di intonaco civile per interni in malta bastarda | D56: m² | E56: 2819.9
A57: 48 | C57: Tinteggiatura per interni lavabile | D57: m² | E57: 3183.27
A58: 49 | C58: Tinteggiatura a tempera per interni | D58: m² | E58: 276
A59: 50 | C59: Tinteggiatura per esterni ai silicati | D59: m² | E59: 671.04
C60: PAVIMENTI, RIVESTIMENTI E CONTROSOFFITTI
A61: =+A59+1 -> 51 | C61: PAVIMENTO IN GRES in piastrelle poste in opera sfalsate o a spina di pesce su letto di malta di cemento tipo 32.5, previo spolvero di cemento con giunti connessi, compresi, tagli, sfridi, il lavaggio con acido e pulitura finale con superficie liscia 20 x 20 cm, spessore 8 ÷ 10 mm | D61: mq | E61: 72.02
A62: 52 | C62: Pavimento di gres porcellanato in piastrelle di 1a scelta, superficie naturale antiscivolo, ottenute per pressatura, a massa unica omogenea, per pavimentazioni ad intenso calpestio, rispondenti alla norma UNI EN 14411 gruppo B Ia UGL (non smaltato), granigliato | D62: mq | E62: 1852.615
A63: 53 | C63: Zoccolo battiscopa in gres ceramico | D63: m | E63: 977.14
A64: 54 | C64: Zoccolo battiscopa in gres rosso | D64: m | E64: 66.76
A65: 55 | C65: Gradini in opera completi di pedata e alzate in gres porcellanato | D65: m | E65: 386.4
A66: 56 | C66: Rivestimento di facciata in doghe di alluminio | D66: m² | E66: 442.48
A67: 57 | C67: Rivestimento esterno in pannelli di malta fibrorinforzata compresa sottostruttura | D67: m² | E67: 122.2
A68: 58 | C68: Rivestimento frangisole orizzontale in doghe scatolate | D68: m² | E68: 192
A69: 59 | B69: =N69&M69 ->  | C69: Rivestimento in pannelli autoportanti in lamiera precoibentata | D69: m² | E69: 74.56
A70: 60 | C70: Pannelli sandwich in lamiera precoibentata pendenzati mm.50 | D70: m² | E70: 33.4
A71: 61 | C71: Soglie in pietra artificiale | D71: m² | E71: 10.1
A72: 62 | C72: Rivestimento ceramico in piastrelle quadrate o rettangolari, compreso manodopera, materiale di incollaggio, finitura e pulizia finale | D72: m² | E72: 299.89
A73: 63 | C73: Controsoffitto in pannelli di fibra minerale | D73: m² | E73: 779.23
A74: 64 | C74: Controsoffitto in pannelli di gesso alleggerito | D74: m² | E74: 1022.2
A75: 65 | C75: Controparete interna in pannelli di mdf con rivestimento in laminato e lamiera preverniciata di raccordo | D75: m² | E75: 13.92
C76: OPERE DA FABBRO, FALEGNAME E SERRAMENTISTA
A77: =+A75+1 -> 66 | C77: CARPENTERIE METALLICHE ZINCATE di qualsiasi sezione e dimensione per travature semplici o composte per solai, ossature, rampanti e ripiani, scale, pensiline, balconi, ecc. con fori, piastre, squadre, tiranti, bulloni elettrodi, ecc. per travature composte zincate | D77: kg | E77: 1431.859
A78: =+A77+1 -> 67 | C78: CARPENTERIE METALLICHE VERNICIATE Profilati in ferro tondo, piatto, quadro od angolare con eventuale impiego di lamiera per ringhiere, inferriate, cancellate, griglie, ecc. ringhiere semplici per scale compresa verniciatura a smalto | D78: kg | E78: 823
A79: 68 | C79: Porta tagliafuoco cieca REI 60, con struttura in acciaio, ad un battente dim. l.p. 900 x 2.150 mm | D79: cad | E79: 10
A80: 69 | C80: Porta tagliafuoco cieca REI 60, con struttura in acciaio, a due battenti dim. l.p. 1200 x 2150 mm | D80: cad | E80: 3
A81: 70 | C81: Porta tagliafuoco cieca REI 60, con struttura in acciaio, a due battenti dim. l.p. 1800 x 2150 mm | D81: cad | E81: 2
A82: 71 | C82: Porta tagliafuoco cieca REI 60, con struttura in acciaio, a due battenti dim. l.p. 1800 x 2150 mm - al netto maniglioni | D82: cad | E82: 5
A83: 72 | C83: Porta interna a due ante con movimento rototraslante cm. (90+30)x210 | D83: n. | E83: 10
A84: 73 | C84: Porte esterne con specchiature grigliate in alluminio | D84: m² | E84: 2.52
A85: 74 | C85: Facciata continua verticale in lega di alluminio: telaio fisso | D85: m² | E85: 121.83
A86: 75 | C86: Facciata continua verticale in lega di alluminio: telaio apribile | D86: m² | E86: 53.57
A87: 76 | C87: Serramenti in lega di alluminio: telaio fisso | D87: m² | E87: 114.11
A88: 77 | C88: Serramenti in lega di alluminio: telaio apribile | D88: m² | E88: 224.21
A89: 78 | C89: Porte-vetrate esterne in lega di alluminio | D89: m² | E89: 26.52
A90: 79 | C90: Vetri camera per infissi esterni a nastro | D90: m² | E90: 304.49
A91: 80 | C91: Vetri camera per facciate continue | D91: m² | E91: 95.69
A92: 81 | C92: Vetro acidato bianco+pannello isolante | D92: m² | E92: 68.04
A93: 82 | C93: Vetro camera esterno acidato | D93: m² | E93: 18
A94: 83 | C94: Pannello coibentato (sopraluce fisso) | D94: m² | E94: 107.06
A95: 84 | C95: Chiudiporta aereo a slitta | D95: n. | E95: 9
A96: 85 | C96: Maniglioni antipanico per porte 1 anta | D96: n. | E96: 4
A97: 86 | C97: Maniglioni antipanico per porte 2 ante | D97: n. | E97: 18
A98: 87 | C98: Attuatore elettrico lineare per movimentazione serramenti | D98: Cadauno | E98: 4
A99: 88 | C99: Parapetto in profilato metallico e vetro antisfondamento | D99: m | E99: 16.8
A100: 89 | C100: Box doccia/wc in laminato stratificato hpl mm.14 | D100: m² | E100: 32.64
A101: 90 | C101: Lucernaio con evacuatore fumo e calore | D101: m² | E101: 1.44
A102: 91 | C102: Lucernaio piano vetrato | D102: m² | E102: 11.39
A103: 92 | C103: Finestra per tetto con tenda oscurante | D103: Cadauno | E103: 2
A104: 93 | C104: Tende alla veneziana esterne in pvc | D104: m² | E104: 285.92
A105: 94 | C105: Serramento apribile vetrato REI 60' dim.120x120 cm | D105: Cadauno | E105: 1
A106: 95 | C106: Sovrapprezzo per inserimento di apertura anta a vasistas | D106: Cadauno | E106: 54
A107: 96 | C107: Corrimano in acciaio inox per scale | D107: m | E107: 37.5
A108: 97 | C108: Parapetto di sicurezza h=110 cm in acciaio zincato | D108: m | E108: 3.5
A109: 98 | C109: Porta interna in alluminio e laminato plastico 90x210 cm | D109: Cadauno | E109: 14
A110: 99 | C110: Porta interna in alluminio e laminato plastico 90x210 cm sollevate da terra 10 cm per bagni | D110: Cadauno | E110: 6
A111: 100 | C111: Porta interna in alluminio e laminato plastico 90x210 cm sollevate da terra 10 cm per bagni disabili | D111: Cadauno | E111: 2
A112: 101 | C112: Porta tagliafuoco doppia in acciaio REI 60 ad ante con parte centrale fissa | D112: m² | E112: 33.54
C113: MANTI DI COPERTURA E LATTONERIE
A114: =+A112+1 -> 102 | C114: Discendenti montati in opera compreso pezzi speciali ed ogni altro onere e magistero per dare l'opera finita a regola d'arte con esclusione dei soli collari di sostegno: diametro fino a 150 mm: in acciaio zincato preverniciato da 8/10 | D114: m | E114: 125
A115: 103 | C115: Bocchettone sifonato in gomma EPDM a flangia quadrata intaccata e codolo di altezza 200 mm, conico nella parte inferiore e cilindrico nella parte superiore, completo di cupola per la sifonatura e griglia parafoglia, posto in opera su foro già predisp diametro 100 mm | D115: cad | E115: 10
A116: 104 | C116: Lattoneria in alluminio preverniciato spessore 8/10 | D116: m² | E116: 308.4
A117: 105 | C117: Lattoneria in alluminio preverniciato spessore 10/10 | D117: m² | E117: 150
A118: 106 | C118: Copertina superiore in lattoneria alluminio preverniciato sp.7/10 | D118: m | E118: 174.8
A119: 107 | C119: Controsoffitto coperto in lattoneria alluminio preverniciato sp.7/10 | D119: m | E119: 175.05
A120: 108 | C120: Profilo chiusura e raccordo rivestimento in alluminio preverniciato sp.7/10 | D120: m | E120: 43.9
A121: 109 | C121: Imbotti infissi scala 2 in alluminio preverniciato sp.12/10 | D121: m | E121: 59.86
A122: 110 | C122: Pannelli in lamiera microforata | D122: m² | E122: 14.04
C123: FOGNATURE, SCARICHI, CANNE
A124: =+A122+1 -> 111 | C124: Scavo in sezione obbligata con mezzo meccanico con sistemazione entro cantiere | D124: mc | E124: 196.64
A125: 112 | C125: RINTERRI E TRASPORTI Rinterro compreso l'avvicinamento dei materiali, il compattamento a strati dei materiali impiegati fino al raggiungimento delle quote del terreno preesistente ed il costipamento prescritto: con materiale arido tipo A1, A2-4, A2-5, A3 proveniente da cave o da idoneo impianto di recupero rifiuti-inerti | D125: mc | E125: 147.48
A126: 113 | C126: Pozzetti prefabbricati sifonati pluviali 30x30 | D126: Cadauno | E126: 10
A127: 114 | C127: Compenso per allaccio nuova rete fognaria a rete esistente | D127: Cadauno | E127: 2
A128: 115 | C128: Vasca raccolta acqua piovana 15 mc | D128: A corpo | E128: 1
A129: 116 | C129: Filtro per acqua piovana con pozzetto | D129: A corpo | E129: 1
A130: 117 | C130: Pozzetti prefabbricati in c.a. dimensione interna 80x80x150 H cm | D130: A corpo | E130: 2
A131: 118 | C131: Pozzetti ad elementi prefabbricati in c.a. dimensione interna 150x150x200 H cm | D131: A corpo | E131: 1
A132: 119 | C132: Vasca di laminazione (area esondabile) da 70 mc ed opere relative | D132: A corpo | E132: 1
A133: 120 | B133: =N133&M133 ->  | C133: Sistema automatico di raccolta e pompaggio acque bianche | D133: A corpo | E133: 1
A134: 121 | C134: Tubi in pvc rigido, forniti e posti in opera, con giunto ed anello elastomerico di tenuta per condotte di scarico interrate, conformi alle norme UNI EN 1401, compreso e compensato nel prezzo ogni onere per la posa in opera diametro di 125 mm, spessore 3,2 mm | D134: m | E134: 26.4
A135: 122 | C135: Tubi in pvc rigido, forniti e posti in opera, con giunto ed anello elastomerico di tenuta per condotte di scarico interrate, conformi alle norme UNI EN 1401, compreso e compensato nel prezzo ogni onere per la posa in opera diametro di 160 mm, spessore 4 mm | D135: m | E135: 54
A136: 123 | C136: Tubi in pvc rigido, forniti e posti in opera, con giunto ed anello elastomerico di tenuta per condotte di scarico interrate, conformi alle norme UNI EN 1401, compreso e compensato nel prezzo ogni onere per la posa in opera diametro di 200 mm, spessore 4,9 mm | D136: m | E136: 126
A137: 124 | C137: Tubi in pvc rigido, forniti e posti in opera, con giunto ed anello elastomerico di tenuta per condotte di scarico interrate, conformi alle norme UNI EN 1401, compreso e compensato nel prezzo ogni onere per la posa in opera diametro di 250 mm, spessore 6,2 mm | D137: m | E137: 97.2
A138: 125 | C138: Tubi in pvc rigido, forniti e posti in opera, con giunto ed anello elastomerico di tenuta per condotte di scarico interrate, conformi alle norme UNI EN 1401, compreso e compensato nel prezzo ogni onere per la posa in opera diametro di 315 mm, spessore 7,7 mm | D138: m | E138: 18
A139: 126 | C139: Tubi in pvc rigido, forniti e posti in opera, con giunto ed anello elastomerico di tenuta per condotte di scarico interrate, conformi alle norme UNI EN 1401, compreso e compensato nel prezzo ogni onere per la posa in opera diametro di 400 mm, spessore 8,7 mm | D139: m | E139: 120
A140: 127 | C140: Pozzetto di raccordo, realizzato con elementi prefabbricati in cemento vibrato con impronte laterali per l'immissione di tubi, senza coperchio o griglia, posti in opera compreso ogni onere e magistero per l'allaccio a tenuta con le tubazioni, ecc. in 60 x 60 x 60 cm, peso 198 kg | D140: cad | E140: 11
A141: 128 | C141: Elementi per prolungare i pozzetti, in calcestruzzo vibrato in opera compreso ogni onere e magistero per il collegamento a terra: 60 x 60 x 60 cm | D141: cad | E141: 11
A142: 129 | C142: FOSSE BIOLOGICHE Fossa Imhoff in calcestruzzo completa di bacino chiarificatore, vasca di raccolta e dispositivo espurgo fanghi rispondente al DLgs n. 152/2006 posta in opera compreso collegamento alle tubazioni, sottofondo di appoggio alto 20 cm con per n. 35 abitanti | D142: cad | E142: 1
C143: SISTEMAZIONI ESTERNE E ALLACCIAMENTI
A144: =+A142+1 -> 130 | C144: Scavo di sbancamento con mezzo meccanico con sistemazione entro cantiere | D144: mc | E144: 340
A145: =+A144+1 -> 131 | C145: Pavimento in battuto di cemento spazzolato per esterni | D145: m² | E145: 283.8
A146: 132 | C146: Condotta acqua in polietilene Ø250 | D146: m | E146: 20
A147: 133 | C147: RILEVATI STRADALI Formazione di rilevato secondo le sagome prescritte con materiali idonei, provenienti sia dagli scavi che dalle cave (terre ghiaia sabbiosa, frazione passante al setaccio 0,075 UNI 2232 = 35%), il compattamento a strati fino a raggi per materiali provenienti dalle cave, compresa la fornitura, appartenenti ai gruppi A1, A2-4, A2-5, A3 o con equivalente materia prima secondaria proveniente da impianti di recupero rifiuti-inerti | D147: mc | E147: 425.14
C148: OPERE SPECIALI
A149: =+A147+1 -> 134 | C149: Ascensore per trasporto persone - per 8 persone, 3 fermate | D149: corpo | E149: 1
C150: ASSISTENZE MURARIE AGLI IMPIANTI
A151: =+A149+1 -> 135 | C151: CARPENTERIE METALLICHE ZINCATE di qualsiasi sezione e dimensione per travature semplici o composte per solai, ossature, rampanti e ripiani, scale, pensiline, balconi, ecc. con fori, piastre, squadre, tiranti, bulloni elettrodi, ecc. per travature composte zincate | D151: kg | E151: 529.412
A152: 136 | C152: Assistenze murarie agli impianti | D152: A corpo | E152: 1
C153: QUADRI ELETTRICI
A154: =+A152+1 -> 137 | C154: Fornitura, posa in opera e collegamento di QUADRO ELETTRICO Q1 PIANO TERRA | D154: n. | E154: 1
A155: 138 | C155: Fornitura, posa in opera e collegamento di QUADRO ELETTRICO Q2 PIANO PRIMO | D155: n. | E155: 1
A156: 139 | C156: Fornitura, posa in opera e collegamento di QUADRO ELETTRICO QSCT | D156: n. | E156: 1
A157: 140 | C157: Fornitura, posa e collegamento di Ampliamento e modifica QBT in cabina di trasformazione realizzato come da schema di progetto | D157: n. | E157: 1
A158: 141 | C158: Fornitura, posa e collegamento di Sostituzione Quadro media Tensione 24kV/630A completo di dispositivo generale SF1-35A-3TV | D158: n. | E158: 1
C159: LINEE DI DISTRIBUZIONE
A160: =+A158+1 -> 142 | C160: Cavo flessibile conforme ai requisiti della Normativa Europea Regolamento UE 305/2011 - Prodotti da Costruzione CPR e alla.....nsione nominale 0,6/1 kV, non propagante l'incendio conforme CEI EN 60332-1-2: unipolare FG16R16 0,6/1 kV: sezione 185 mm². | D160: m | E160: 1840
A161: 143 | C161: Cavo flessibile conforme ai requisiti della Normativa Europea Regolamento UE 305/2011 - Prodotti da Costruzione CPR e alla.....iale mescola termoplastica, non propagante l'incendio conforme CEI EN 60332-1-2: unipolare FG16M16 0,6/1 kV: sezione 25 mm² | D161: m | E161: 40
A162: 144 | C162: Cavo flessibile conforme ai requisiti della Normativa Europea Regolamento UE 305/2011 - Prodotti da Costruzione CPR e alla.....iale mescola termoplastica, non propagante l'incendio conforme CEI EN 60332-1-2: unipolare FG16M16 0,6/1 kV: sezione 35 mm² | D162: m | E162: 100
A163: 145 | C163: Cavo flessibile conforme ai requisiti della Normativa Europea Regolamento UE 305/2011 - Prodotti da Costruzione CPR e alla.....iale mescola termoplastica, non propagante l'incendio conforme CEI EN 60332-1-2: unipolare FG16M16 0,6/1 kV: sezione 50 mm² | D163: m | E163: 60
A164: 146 | C164: Cavo flessibile conforme ai requisiti della Normativa Europea Regolamento UE 305/2011 - Prodotti da Costruzione CPR e alla.....iale mescola termoplastica, non propagante l'incendio conforme CEI EN 60332-1-2: unipolare FG16M16 0,6/1 kV: sezione 70 mm² | D164: m | E164: 150
A165: 147 | C165: Cavo flessibile conforme ai requisiti della Normativa Europea Regolamento UE 305/2011 - Prodotti da Costruzione CPR e alla.....le mescola termoplastica, non propagante l'incendio conforme CEI EN 60332-1-2: tripolare FG16OM16 0,6/1 kV: sezione 1,5 mm² | D165: m | E165: 400
A166: 148 | C166: Cavo flessibile conforme ai requisiti della Normativa Europea Regolamento UE 305/2011 - Prodotti da Costruzione CPR e alla.....le mescola termoplastica, non propagante l'incendio conforme CEI EN 60332-1-2: tripolare FG16OM16 0,6/1 kV: sezione 2,5 mm² | D166: m | E166: 1000
A167: 149 | C167: Cavo flessibile conforme ai requisiti della Normativa Europea Regolamento UE 305/2011 - Prodotti da Costruzione CPR e alla.....iale mescola termoplastica, non propagante l'incendio conforme CEI EN 60332-1-2: tripolare FG16OM16 0,6/1 kV: sezione 4 mm² | D167: m | E167: 740
A168: 150 | C168: Cavo flessibile conforme ai requisiti della Normativa Europea Regolamento UE 305/2011 - Prodotti da Costruzione CPR e alla.....iale mescola termoplastica, non propagante l'incendio conforme CEI EN 60332-1-2: tripolare FG16OM16 0,6/1 kV: sezione 6 mm² | D168: m | E168: 320
A169: 151 | C169: Canale in lamiera zincata a caldo con processo Sendzimir, conforme UNI EN 10327, spessore del rivestimento protettivo non .....to 3,0 m, a fondo cieco o forato coperchio escluso, compresi accessori di fissaggio: sezione 300 x 75 mm, spessore 12/10 mm | D169: m | E169: 270
A170: 152 | C170: Canale in lamiera zincata a caldo con processo Sendzimir, conforme UNI EN 10327, spessore del rivestimento protettivo non .....to 3,0 m, a fondo cieco o forato coperchio escluso, compresi accessori di fissaggio: sezione 400 x 75 mm, spessore 12/10 mm | D170: m | E170: 110
A171: 153 | C171: Coperchi per canali a fondo forato o cieco e per passerelle in lamiera zincata a caldo con processo Sendzimir, conforme UNI EN 10327, spessore del rivestimento protettivo non inferiore a 14 µ: larghezza 300 mm, spessore 8/10 mm | D171: m | E171: 270
A172: 154 | C172: Coperchi per canali a fondo forato o cieco e per passerelle in lamiera zincata a caldo con processo Sendzimir, conforme UNI EN 10327, spessore del rivestimento protettivo non inferiore a 14 µ: larghezza 400 mm, spessore 8/10 mm | D172: m | E172: 110
A173: 155 | C173: Setto separatore in lamiera zincata a caldo con processo Sendzimir, spessore del rivestimento non inferiore a 14 µ, conforme UNI EN 10327, in elementi dello spessore di 8/10 mm preforati, per canale di altezza: 75 mm | D173: n. | E173: 160
A174: 156 | C174: Cassetta di derivazione da parete, in materiale plastico autoestinguente, inclusi accessori per giunzione cavi, coperchio .....ssaggio: grado di protezione IP 44 o superiore, a media resistenza (75 °C), con passacavi, dimensioni in mm: 100 x 100 x 50 | D174: n. | E174: 60
A175: 157 | C175: Cassetta di derivazione da parete, in materiale plastico autoestinguente, inclusi accessori per giunzione cavi, coperchio .....ssaggio: grado di protezione IP 44 o superiore, a media resistenza (75 °C), con passacavi, dimensioni in mm: 150 x 110 x 70 | D175: n. | E175: 20
A176: 158 | C176: Fornitura e posa di cavo uni-multipolare flessibile 0,6/1 kV di rame rosso ricotto isolamento in gomma HEPR e guaina termo..... finita perfettamente funzionante e a regola d'arte - IEMMEQU FTG10OM1 0.6/1 KV RF31-22 AFUMEX - sezione 3G2.5 mm2 FTG10OM1 | D176: m | E176: 400
A177: 159 | C177: Fornitura e posa di cavo uni-multipolare flessibile 0,6/1 kV di rame rosso ricotto isolamento in gomma HEPR e guaina termo.....a finita perfettamente funzionante e a regola d'arte - IEMMEQU FTG10OM1 0.6/1 KV RF31-22 AFUMEX - sezione 5G16 mm2 FTG10OM1 | D177: m | E177: 30
C178: IMPIANTO DI TERRA
A179: =+A177+1 -> 160 | C179: Corda in rame nudo, in opera completa di morsetti e capicorda, posata: interrata entro scavo predisposto: sezione nominale 50 mm² | D179: m | E179: 150
A180: 161 | C180: Collettore di terra in bandella di rame, installato: a vista su isolatori: sezione 30 x 4 mm | D180: m | E180: 2
A181: 162 | C181: Barra per messa a terra posta in opera su strutture metalliche, in piatto sagomato, fori di collegamento 11 mm: in acciaio zincato, dimensioni: 400 x 60 x 4 mm, per 12 collegamenti | D181: n. | E181: 6
A182: 163 | C182: Dispersore in acciaio ramato del tipo prolungabile, lunghezza 1,5 m, spessore rame 100 µ, completo di morsetto di allaccio.....imensioni esterne di 400 x 400 x 400 mm, comprensivo dello scavo e del rinterro per la posa di quest'ultimo: diametro 25 mm | D182: n. | E182: 6
A183: 164 | C183: Dispersore in acciaio ramato del tipo prolungabile, lunghezza 1,5 m, spessore rame 100 µ, completo di morsetto di allaccio.....m, comprensivo dello scavo e del rinterro per la posa di quest'ultimo: sovrapprezzo per prolungamento 1,5 m, diametro 25 mm | D183: n. | E183: 6
C184: IMPIANTI ILLUMINAZIONE E FORZA MOTRICE
A185: =+A183+1 -> 165 | C185: Fornitura, posa in opera e collegamento di PRESA DI CORRENTE BIVALENTE 2x10/16 A+T eseguito sotto traccia con tubo in pvc ..... allacciamento, scatola di derivazione e di accessori per dare l'opera finita perfettamente funzionante ed a regola d'arte. | D185: n. | E185: 105
A186: 166 | C186: Fornitura, posa in opera e collegamento di PRESA DI CORRENTE BIVALENTE 2x10/16 A+T eseguito sotto traccia con tubo in pvc e cavo FS17 3G2.5 in derivazione da linea dorsale completo di custodia IP55 e di allacciamento, scatola di derivazione e di acce | D186: n. | E186: 10
A187: 167 | C187: Fornitura, posa in opera e collegamento di PRESA DI CORRENTE BIVALENTE 2x10/16 A+T eseguito sotto traccia con tubo in pvc ..... allacciamento, scatola di derivazione e di accessori per dare l'opera finita perfettamente funzionante ed a regola d'arte. | D187: n. | E187: 12
A188: 168 | C188: Fornitura, posa in opera e collegamento di PRESA DI CORRENTE UNEL 2x10/16 A+T eseguito sotto traccia con tubo in pvc e ca..... allacciamento, scatola di derivazione e di accessori per dare l'opera finita perfettamente funzionante ed a regola d'arte. | D188: n. | E188: 66
A189: 169 | C189: Fornitura, posa in opera e collegamento di PRESA DI CORRENTE CEE 2x16 A+T con interruttore di blocco e fusibili in custodi.....tta collettrice e di accessori per dare l'opera finita perfettamente funzionante ed a regola d'arte. - MARCA PALAZZOLI TAIS | D189: n. | E189: 5
A190: 170 | C190: Fornitura, posa in opera e collegamento di PRESA DI CORRENTE CEE 3x16 A+N+T con interruttore di blocco e fusibili in custo.....tta collettrice e di accessori per dare l'opera finita perfettamente funzionante ed a regola d'arte. - MARCA PALAZZOLI TAIS | D190: n. | E190: 5
A191: 171 | C191: Foritura, posa e collegamento di gruppo presa lavoro ciascuna con due bivalenti 2x10/16 A+T e due UNEL 2x10/16 A+T comprensivo di tutti gli accessori per dare l'opera finita, perfettamente funzionante e a regola d'arte. | D191: n. | E191: 32
A192: 172 | C192: Fornitura, posa in opera e collegamento di PULSANTE DI EMERGENZA in cassetta con vetro frangibile di colore rosso IP44 ese.....cipale, di scatole di derivazione IP44 e di accessori per dare l'opera finita perfettamente funzionante ed a regola d'arte. | D192: n. | E192: 1
A193: 173 | C193: Fornitura, posa e collegamento di torretta porta apparecchi 10/20 moduli a scomparsa in solaio/pavimento con gruppo prese lavoro comprensivo di tutti gli accessori per dare l'opera finita, perfettamente funzionanti e a regola d'arte. | D193: n. | E193: 16
A194: 174 | C194: Fornitura, posa in opera e collegamento di punto luce derivato eseguito in parte nel controsoffitto con cavo FGTG10OM1 - c.....nale di uscita, scatola di derivazione e di accessori per dare l'opera finita perfettamente funzionante ed a regola d'arte. | D194: n. | E194: 100
A195: 175 | C195: Fornitura, posa in opera e collegamento di punto luce derivato eseguito in parte nel controsoffitto con cavo FG16OM16 - co.....nale di uscita, scatola di derivazione e di accessori per dare l'opera finita perfettamente funzionante ed a regola d'arte. | D195: n. | E195: 235
A196: 176 | C196: Fornitura, posa in opera e collegamento di punto luce interrotto eseguito a vista con tubo pvc - cordina FS17 e scatola IP..... allacciamento alla dorsale principale e di accessori per dare l'opera finita perfettamente funzionante ed a regola d'arte. | D196: n. | E196: 9
A197: 177 | B197: =N197&M197 ->  | C197: Fornitura, posa in opera e collegamento di punto PULSANTE eseguito sotto traccia con tubo pvc - compreso collegamento alla.....i 2x2x0.8 mmq , scatola di derivazione e di accessori per dare l'opera finita perfettamente funzionante ed a regola d'arte. | D197: n. | E197: 36
C198: CORPI ILLIMINANTI
A199: =+A197+1 -> 178 | C199: Fornitura, posa in opera e collegamento di apparecchio stagno LED con le seguenti caratteristiche : ILLUMINOTECNICHE Rendi.....nza iniziale del colore (MacAdam): 3. DOTAZIONE Staffe di fissaggio in acciaio inox. Marca 3F FILIPPI LINDA LED 2x30W L1570 | D199: n. | E199: 9
A200: 179 | C200: Fornitura, posa e collegamento di Plafoniera avente le seguenti caratteristiche : ILLUMINOTECNICHE Luminanza media <1000 cd/m² per angoli >65° radiali. UGR <17 (EN 12464- 1). Efficacia luminosa 123 lm/W. | D200: n. | E200: 9
... 312 more rows
